[Event "Moscow Rapid-ch 2018"]
[Site "Moscow"]
[Date "2018.12.09"]
[Round "8"]
[White "Strutinskaia, Galina"]
[Black "Utiatskaja, Irina"]
[Result "1-0"]
[ECO "A01"]
[WhiteElo "2201"]
[BlackElo "2246"]
[Annotator "NA"]
[PlyCount "77"]
[EventDate "2018.12.08"]
[EventType "swiss"]
[EventCountry "RUS"]
[SourceTitle "playchess.com"]
[Source "ChessBase"]
[SourceQuality "1"]
[TimeControl "900+10"]

1. b3 {[%emt 0:00:00]} d5 {[%emt 0:00:00]} 2. Bb2 {[%emt 0:00:10]} Nf6 {[%emt 0:00:10]} 3. f4 {[%emt 0:00:10]} g6 {[%emt 0:00:10]} 4. Nf3 {[%emt 0:00:10]} Bg7 {[%emt 0:00:10]} 5. e3 {[%emt 0:00:10]} O-O {[%emt 0:00:10]} 6. Be2 {[%emt 0:00:10]} c5 {[%emt 0:00:10]} 7. O-O {[%emt 0:00:10]} Nc6 {[%emt 0:00:10]} 8. Qe1 {[%emt 0:00:10]} b6 {[%emt 0:00:10]} 9. Qh4 {[%emt 0:00:10]} Bb7 {[%emt 0:00:10]} 10. d3 {[%emt 0:00:02]} Re8 {[%emt 0:02:47]} 11. Nbd2 {[%emt 0:00:12]} a5 {[%emt 0:01:05]} 12. a4 {[%emt 0:00:08]} Rc8 {[%emt 0:00:19]} 13. Rae1 {[%emt 0:00:03]} Ba6 {[%emt 0:00:07]} 14. g4 {[%emt 0:01:02]} Nb4 {[%emt 0:01:00]} 15. Bd1 {[%emt 0:00:24]} c4 {[%emt 0:00:16]} 16. dxc4 {[%emt 0:01:28]} dxc4 {[%emt 0:00:01]} 17. Nxc4 {[%emt 0:00:21]} Bxc4 {[%emt 0:00:01]} 18. bxc4 {[%emt 0:00:01]} Rxc4 {[%emt 0:00:32]} 19. g5 {[%emt 0:00:11]} Nh5 {[%emt 0:01:15]} 20. Ne5 {[%emt 0:00:07]} Rc8 {[%emt 0:00:10]} 21. Bxh5 {[%emt 0:00:03]} Rxc2 {[%emt 0:00:45]} 22. Nxf7 {[%emt 0:01:19]} Kxf7 {[%emt 0:00:19]} 23. Bxg7 {[%emt 0:00:02]} Kxg7 24. Bg4 {[%emt 0:02:21]} Qd5 {[%emt 0:05:02]} 25. Bf3 {[%emt 0:00:20]} Qc5 {[%emt 0:00:22]} 26. Be4 {[%emt 0:00:19]} Rc3 {[%emt 0:00:33]} 27. Rf3 {[%emt 0:00:24]} Rc1 {[%emt 0:00:38]} 28. Kg2 {[%emt 0:01:56]} Rd8 {[%emt 0:00:11]} 29. Re2 {[%emt 0:01:19]} Rdd1 {[%emt 0:00:21]} 30. Qh6+ {[%emt 0:00:20]} Kg8 {[%emt 0:00:01]} 31. f5 {[%emt 0:00:18]} Qc8 {[%emt 0:01:37]} 32. Rf4 {[%emt 0:01:30]} Rg1+ {[%emt 0:00:40]} 33. Kh3 {[%emt 0:00:14]} Rc3 {[%emt 0:00:21]} 34. Rh4 {[%emt 0:00:13]} Kf7 {[%emt 0:00:28]} 35. Qxh7+ {[%emt 0:00:05]} Ke8 {[%emt 0:00:01]} 36. Qxg6+ {[%emt 0:00:02]} Kd7 {[%emt 0:00:03]} 37. Qe6+ {[%emt 0:00:42]} Kc7 {[%emt 0:00:01]} 38. Qe5+ {[%emt 0:00:16]} Kd7 {[%emt 0:00:12]} 39. Rd2+ {[%emt 0:00:02]} 1-0

[Event "Moscow Rapid-ch 2018"]
[Site "Moscow"]
[Date "2018.12.09"]
[Round "8"]
[White "Chudinovskikh, Alexander M"]
[Black "Dudin, Gleb"]
[Result "1-0"]
[ECO "C01"]
[WhiteElo "2184"]
[BlackElo "2303"]
[Annotator "NA"]
[PlyCount "153"]
[EventDate "2018.12.08"]
[EventType "swiss"]
[EventCountry "RUS"]
[SourceTitle "playchess.com"]
[Source "ChessBase"]
[SourceQuality "1"]
[TimeControl "900+10"]

1. e4 {[%emt 0:00:00]} e6 {[%emt 0:00:00]} 2. d4 {[%emt 0:00:00]} d5 {[%emt 0:00:00]} 3. exd5 {[%emt 0:00:00]} exd5 {[%emt 0:00:00]} 4. Nf3 {[%emt 0:00:00]} Bd6 {[%emt 0:00:06]} 5. c4 {[%emt 0:00:00]} dxc4 {[%emt 0:00:15]} 6. Bxc4 {[%emt 0:00:00]} Nf6 {[%emt 0:00:05]} 7. O-O {[%emt 0:00:03]} O-O {[%emt 0:00:03]} 8. h3 {[%emt 0:00:05]} a6 {[%emt 0:00:04]} 9. Nc3 {[%emt 0:00:01]} h6 {[%emt 0:00:34]} 10. Re1 {[%emt 0:00:11]} Nc6 {[%emt 0:00:24]} 11. a3 {[%emt 0:00:26]} Ne7 {[%emt 0:00:59]} 12. Ne5 {[%emt 0:00:21]} b5 {[%emt 0:01:27]} 13. Ba2 {[%emt 0:00:35]} Bb7 {[%emt 0:00:08]} 14. Bf4 {[%emt 0:00:21]} Rb8 {[%emt 0:04:41]} 15. Qe2 {[%emt 0:01:22]} Ned5 {[%emt 0:03:10]} 16. Bg3 {[%emt 0:00:15]} Nxc3 {[%emt 0:00:43]} 17. bxc3 {[%emt 0:00:01]} Ne4 {[%emt 0:00:13]} 18. Qh5 {[%emt 0:01:56]} Bxe5 {[%emt 0:02:01]} 19. Bxe5 {[%emt 0:00:18]} Nxc3 {[%emt 0:01:38]} 20. Qg4 {[%emt 0:07:06]} Qg5 {[%emt 0:00:24]} 21. Bxc7 {[%emt 0:00:09]} Qxg4 {[%emt 0:00:30]} 22. hxg4 {[%emt 0:00:01]} Rbc8 {[%emt 0:00:01]} 23. Bb6 {[%emt 0:01:01]} Bd5 {[%emt 0:00:40]} 24. Bb1 {[%emt 0:00:43]} Na4 {[%emt 0:00:24]} 25. Ba5 {[%emt 0:00:15]} Rc4 {[%emt 0:00:24]} 26. Bb4 {[%emt 0:00:21]} Rd8 {[%emt 0:00:14]} 27. Be7 {[%emt 0:00:32]} Re8 {[%emt 0:00:05]} 28. Bf5 {[%emt 0:00:17]} g6 {[%emt 0:00:15]} 29. Bd7 {[%emt 0:00:11]} Ra8 {[%emt 0:00:08]} 30. Bf6 {[%emt 0:00:11]} Nb6 {[%emt 0:00:01]} 31. Re7 {[%emt 0:02:51]} Rc7 {[%emt 0:00:02]} 32. Rae1 {[%emt 0:00:07]} Nxd7 {[%emt 0:00:01]} 33. Re8+ {[%emt 0:00:08]} Rxe8 {[%emt 0:00:01]} 34. Rxe8+ {[%emt 0:00:01]} Nf8 {[%emt 0:00:01]} 35. Be7 {[%emt 0:00:01]} Rxe7 {[%emt 0:00:03]} 36. Rxe7 {[%emt 0:00:01]} a5 {[%emt 0:00:44]} 37. f3 {[%emt 0:00:19]} Kg7 {[%emt 0:00:14]} 38. Kf2 {[%emt 0:00:07]} Kf6 {[%emt 0:00:18]} 39. Re5 {[%emt 0:00:09]} Bc4 {[%emt 0:00:01]} 40. f4 {[%emt 0:00:26]} Nd7 {[%emt 0:00:25]} 41. g5+ {[%emt 0:00:08]} Kg7 {[%emt 0:00:09]} 42. Re7 {[%emt 0:00:08]} Nb6 {[%emt 0:00:08]} 43. Ra7 {[%emt 0:00:11]} a4 {[%emt 0:00:14]} 44. Rb7 {[%emt 0:00:04]} Nd5 {[%emt 0:00:09]} 45. gxh6+ {[%emt 0:00:02]} Kxh6 {[%emt 0:00:01]} 46. Rxf7 {[%emt 0:00:03]} b4 {[%emt 0:00:18]} 47. axb4 {[%emt 0:00:11]} a3 {[%emt 0:00:12]} 48. Ra7 {[%emt 0:00:11]} a2 {[%emt 0:00:08]} 49. b5 {[%emt 0:00:04]} Bxb5 {[%emt 0:00:12]} 50. Rxa2 {[%emt 0:00:04]} Nxf4 {[%emt 0:00:05]} 51. g3 {[%emt 0:00:14]} Nd5 {[%emt 0:00:14]} 52. Ra5 {[%emt 0:00:10]} Bc4 {[%emt 0:00:12]} 53. Rc5 {[%emt 0:00:11]} Bb3 {[%emt 0:00:09]} 54. Kf3 {[%emt 0:00:04]} Nf6 {[%emt 0:00:05]} 55. Kf4 {[%emt 0:00:14]} Bf7 {[%emt 0:00:16]} 56. g4 {[%emt 0:00:13]} Kg7 {[%emt 0:00:09]} 57. g5 {[%emt 0:00:13]} Nd5+ {[%emt 0:00:10]} 58. Ke5 {[%emt 0:00:05]} Ne7 {[%emt 0:00:04]} 59. d5 {[%emt 0:00:31]} Nf5 {[%emt 0:00:17]} 60. Rc7 {[%emt 0:00:21]} Kf8 {[%emt 0:00:09]} 61. d6 {[%emt 0:00:04]} Ke8 {[%emt 0:00:09]} 62. Ra7 {[%emt 0:00:20]} Bb3 {[%emt 0:00:11]} 63. Rb7 {[%emt 0:00:20]} Bc4 {[%emt 0:00:08]} 64. Rc7 {[%emt 0:00:16]} Bb3 {[%emt 0:00:10]} 65. Ra7 {[%emt 0:00:13]} Bc4 {[%emt 0:00:09]} 66. Rb7 {[%emt 0:00:20]} Ba2 {[%emt 0:00:11]} 67. Rb8+ {[%emt 0:00:05]} Kd7 {[%emt 0:00:06]} 68. Rb7+ {[%emt 0:00:00]} Ke8 {[%emt 0:00:11]} 69. Rb4 {[%emt 0:00:08]} Kd7 {[%emt 0:00:11]} 70. Rb7+ {[%emt 0:00:06]} Ke8 {[%emt 0:00:01]} 71. Ra7 {[%emt 0:00:05]} Bb3 {[%emt 0:00:01]} 72. Rb7 {[%emt 0:00:29]} Bc4 {[%emt 0:00:02]} 73. Rb4 {[%emt 0:00:10]} Ba2 {[%emt 0:00:12]} 74. Rb8+ {[%emt 0:00:10]} Kd7 {[%emt 0:00:02]} 75. Rb7+ {[%emt 0:00:01]} Ke8 {[%emt 0:00:01]} 76. Rh7 {[%emt 0:00:18]} Bb3 {[%emt 0:00:14]} 77. Rb7 {[%emt 0:00:13]} 1-0

[Event "Moscow Rapid-ch 2018"]
[Site "Moscow"]
[Date "2018.12.09"]
[Round "8"]
[White "Martynyuk, Elizaveta"]
[Black "Paramzina, Anastasya"]
[Result "0-1"]
[ECO "B90"]
[WhiteElo "2128"]
[BlackElo "2229"]
[Annotator "NA"]
[PlyCount "80"]
[EventDate "2018.12.08"]
[EventType "swiss"]
[EventCountry "RUS"]
[SourceTitle "playchess.com"]
[Source "ChessBase"]
[SourceQuality "1"]
[TimeControl "900+10"]

1. e4 c5 2. Nf3 d6 3. d4 cxd4 4. Nxd4 Nf6 5. Nc3 a6 6. Be3 e5 7. Nf3 Qc7 8. Be2 h6 9. O-O Be6 10. h3 Be7 11. Nd2 O-O 12. f4 exf4 13. Bxf4 Nbd7 14. Nf3 Qb6+ 15. Kh1 Qxb2 16. Nd5 Bxd5 17. exd5 Rfe8 18. c4 Nh5 19. Rb1 Qxa2 20. Bh2 Bf8 21. Nd4 Nhf6 22. Rxb7 Nc5 23. Rc7 Nce4 24. Qd3 Qb2 25. Bf4 Nc5 26. Qd1 Nfe4 27. Bh5 Nf2+ 28. Rxf2 Qxf2 29. Bxf7+ Kh7 30. Bxe8 Qxf4 31. Rf7 Qe3 32. Bc6 Rb8 33. Rf3 Qe5 34. Ne6 Be7 35. Nxc5 dxc5 36. Qd3+ Kh8 37. Re3 Qa1+ 38. Kh2 Bd6+ 39. g3 Rb2+ 40. Re2 Qf1 0-1

[Event "Moscow Rapid-ch 2018"]
[Site "Moscow"]
[Date "2018.12.09"]
[Round "8"]
[White "Kanevskaya, Anna"]
[Black "Vasilevich, Irina"]
[Result "1/2-1/2"]
[ECO "A40"]
[WhiteElo "2105"]
[BlackElo "2258"]
[Annotator "NA"]
[PlyCount "118"]
[EventDate "2018.12.08"]
[EventType "swiss"]
[EventCountry "RUS"]
[SourceTitle "playchess.com"]
[Source "ChessBase"]
[SourceQuality "1"]
[TimeControl "900+10"]

1. d4 {[%emt 0:00:00]} e6 {[%emt 0:00:00]} 2. Nf3 {[%emt 0:00:00]} b6 {[%emt 0:00:00]} 3. c4 {[%emt 0:00:00]} Ba6 {[%emt 0:00:34]} 4. Qc2 {[%emt 0:00:00]} Nf6 {[%emt 0:00:06]} 5. g3 {[%emt 0:00:00]} Bb4+ {[%emt 0:00:03]} 6. Bd2 {[%emt 0:00:17]} Bxd2+ {[%emt 0:01:20]} 7. Nbxd2 {[%emt 0:00:02]} O-O {[%emt 0:00:04]} 8. Bg2 {[%emt 0:00:02]} d5 {[%emt 0:00:33]} 9. O-O {[%emt 0:00:05]} c6 {[%emt 0:01:00]} 10. Rfd1 {[%emt 0:00:27]} Nbd7 {[%emt 0:00:13]} 11. Rac1 {[%emt 0:00:38]} Qe7 {[%emt 0:00:34]} 12. a3 {[%emt 0:00:43]} Rac8 {[%emt 0:01:36]} 13. e4 {[%emt 0:00:10]} dxc4 {[%emt 0:01:11]} 14. Nxc4 {[%emt 0:02:10]} Bxc4 {[%emt 0:00:39]} 15. Qxc4 {[%emt 0:00:04]} Nxe4 {[%emt 0:00:03]} 16. Ne5 {[%emt 0:01:09]} Nxe5 {[%emt 0:01:01]} 17. dxe5 {[%emt 0:00:02]} Nc5 {[%emt 0:00:02]} 18. f4 {[%emt 0:01:32]} a5 {[%emt 0:03:53]} 19. b4 {[%emt 0:03:04]} axb4 {[%emt 0:00:02]} 20. axb4 {[%emt 0:00:23]} Na4 {[%emt 0:00:04]} 21. Qb3 {[%emt 0:01:11]} b5 {[%emt 0:00:06]} 22. Bxc6 {[%emt 0:00:47]} Qa7+ {[%emt 0:00:06]} 23. Kg2 {[%emt 0:01:17]} g6 {[%emt 0:01:33]} 24. Kh3 {[%emt 0:00:44]} Qb6 {[%emt 0:00:55]} 25. Rd6 {[%emt 0:00:31]} Qf2 {[%emt 0:00:16]} 26. Rc2 {[%emt 0:02:19]} Qf1+ {[%emt 0:01:27]} 27. Bg2 {[%emt 0:00:03]} Qe1 {[%emt 0:00:01]} 28. Bc6 {[%emt 0:01:28]} Qf1+ {[%emt 0:00:25]} 29. Bg2 {[%emt 0:00:06]} Qe1 {[%emt 0:00:01]} 30. Bc6 {[%emt 0:00:03]} Qf1+ {[%emt 0:01:36]} 31. Bg2 {[%emt 0:00:09]} Qe1 {[%emt 0:00:01]} 32. Bc6 {[%emt 0:00:02]} Nb6 {[%emt 0:00:14]} 33. Bxb5 {[%emt 0:00:35]} Rxc2 {[%emt 0:00:02]} 34. Qxc2 {[%emt 0:00:01]} Nd5 {[%emt 0:00:01]} 35. Qe2 {[%emt 0:00:30]} Qxb4 {[%emt 0:00:05]} 36. Qc4 {[%emt 0:00:07]} Qa3 {[%emt 0:00:13]} 37. Qd3 {[%emt 0:00:07]} Qc5 {[%emt 0:00:15]} 38. Qc4 {[%emt 0:00:12]} Qg1 {[%emt 0:00:26]} 39. Qf1 {[%emt 0:00:11]} Qa7 {[%emt 0:00:14]} 40. Qc4 {[%emt 0:00:12]} Kg7 {[%emt 0:00:11]} 41. Bc6 {[%emt 0:00:10]} Ne3 {[%emt 0:00:04]} 42. Qd4 {[%emt 0:00:10]} Qa3 {[%emt 0:00:16]} 43. Qd3 {[%emt 0:00:09]} Qc1 {[%emt 0:00:11]} 44. Be4 {[%emt 0:00:12]} h5 {[%emt 0:00:12]} 45. Rc6 {[%emt 0:00:06]} Qg1 {[%emt 0:00:06]} 46. Qe2 {[%emt 0:00:16]} Ng4 {[%emt 0:00:06]} 47. Rc2 {[%emt 0:00:04]} Rb8 {[%emt 0:00:12]} 48. Bf3 {[%emt 0:00:04]} Nh6 {[%emt 0:00:12]} 49. Qf2 {[%emt 0:00:07]} Qa1 {[%emt 0:00:03]} 50. Ra2 {[%emt 0:00:04]} Qb1 {[%emt 0:00:07]} 51. Qc2 {[%emt 0:00:05]} Qf1+ {[%emt 0:00:06]} 52. Bg2 {[%emt 0:00:23]} Qb5 {[%emt 0:00:04]} 53. Ra7 {[%emt 0:00:11]} Qb2 {[%emt 0:00:43]} 54. Qc7 {[%emt 0:00:14]} Qe2 {[%emt 0:00:03]} 55. Bb7 {[%emt 0:00:17]} Qf1+ {[%emt 0:00:18]} 56. Bg2 {[%emt 0:00:04]} Qd1 {[%emt 0:00:03]} 57. Bb7 {[%emt 0:00:08]} Qf1+ {[%emt 0:00:14]} 58. Bg2 {[%emt 0:00:04]} Qe2 {[%emt 0:00:01]} 59. Bb7 {[%emt 0:00:06]} Qf1+ {[%emt 0:00:22]} 1/2-1/2

[Event "Moscow Rapid-ch 2018"]
[Site "Moscow"]
[Date "2018.12.09"]
[Round "8"]
[White "Girshgorn, Leonid"]
[Black "Zhukov, Anton"]
[Result "1-0"]
[ECO "A45"]
[WhiteElo "2038"]
[BlackElo "2138"]
[Annotator "NA"]
[PlyCount "101"]
[EventDate "2018.12.08"]
[EventType "swiss"]
[EventCountry "RUS"]
[SourceTitle "playchess.com"]
[Source "ChessBase"]
[SourceQuality "1"]
[TimeControl "900+10"]

1. d4 Nf6 2. Bf4 c5 3. dxc5 Nc6 4. Nf3 Qa5+ 5. Nc3 Ne4 6. Qd3 Nxc5 7. Qd2 d6 8. e4 Ne6 9. Be3 g6 10. Nd4 Bg7 11. Nb3 Qd8 12. O-O-O a6 13. Bh6 Bxh6 14. Qxh6 b5 15. f4 Nc7 16. Qg7 Rf8 17. e5 d5 18. Qxh7 Bf5 19. h3 b4 20. Na4 Ne6 21. Bd3 Bxd3 22. Rxd3 Nxf4 23. Rf3 Ne6 24. Rhf1 Ng5 25. Qxg6 e6 26. Rxf7 Nxf7 27. Qxe6+ Ne7 28. Nac5 Rc8 29. Nb7 Qc7 30. N3c5 Qxc5 31. Nxc5 Rxc5 32. Qxa6 Nxe5 33. Rxf8+ Kxf8 34. Qd6 Nd3+ 35. Kd2 Nf2 36. Qf6+ Ke8 37. Qxf2 Ra5 38. Qb6 Rxa2 39. Qxb4 Ra6 40. Qb5+ Rc6 41. g4 Kf7 42. h4 Rf6 43. Ke2 Rf4 44. Qd7 d4 45. h5 Re4+ 46. Kd3 Re1 47. Kd2 Re4 48. g5 Kg7 49. Kd3 Re1 50. Qxd4+ Kf7 51. Qf2+ 1-0

[Event "Moscow Rapid-ch 2018"]
[Site "Moscow"]
[Date "2018.12.09"]
[Round "8"]
[White "Glibka, Yulia"]
[Black "Chasovnikova, Eugenia"]
[Result "0-1"]
[ECO "A10"]
[WhiteElo "1979"]
[BlackElo "2201"]
[Annotator "NA"]
[PlyCount "68"]
[EventDate "2018.12.08"]
[EventType "swiss"]
[EventCountry "RUS"]
[SourceTitle "playchess.com"]
[Source "ChessBase"]
[SourceQuality "1"]
[TimeControl "900+10"]

1. c4 {[%emt 0:00:00]} g6 {[%emt 0:00:15]} 2. d4 {[%emt 0:00:00]} Bg7 {[%emt 0:00:01]} 3. g3 {[%emt 0:00:00]} c5 {[%emt 0:00:02]} 4. d5 {[%emt 0:00:57]} d6 {[%emt 0:00:02]} 5. e4 {[%emt 0:00:18]} Nf6 {[%emt 0:00:01]} 6. Bg2 {[%emt 0:00:03]} O-O {[%emt 0:00:02]} 7. Ne2 {[%emt 0:00:13]} e6 {[%emt 0:00:05]} 8. dxe6 {[%emt 0:01:20]} Bxe6 {[%emt 0:00:08]} 9. Qc2 {[%emt 0:00:07]} Nc6 {[%emt 0:00:30]} 10. O-O {[%emt 0:00:43]} Nb4 {[%emt 0:01:02]} 11. Qb3 {[%emt 0:01:17]} b5 {[%emt 0:00:28]} 12. Nbc3 {[%emt 0:02:01]} bxc4 13. Qd1 {[%emt 0:00:05]} Rb8 {[%emt 0:03:25]} 14. Nf4 {[%emt 0:00:41]} Bg4 {[%emt 0:00:35]} 15. f3 {[%emt 0:00:11]} Bc8 {[%emt 0:00:11]} 16. a3 {[%emt 0:00:41]} Nc6 {[%emt 0:00:17]} 17. Qe2 {[%emt 0:00:01]} Ba6 {[%emt 0:00:31]} 18. Be3 {[%emt 0:00:38]} Nd4 {[%emt 0:00:18]} 19. Qf2 {[%emt 0:00:06]} Nd7 {[%emt 0:00:30]} 20. Rab1 {[%emt 0:00:25]} Ne5 {[%emt 0:00:58]} 21. Rfd1 {[%emt 0:00:52]} Nd3 {[%emt 0:00:06]} 22. Qd2 {[%emt 0:02:15]} f5 {[%emt 0:01:47]} 23. exf5 {[%emt 0:01:25]} Rxf5 {[%emt 0:02:03]} 24. Rf1 {[%emt 0:00:17]} Qe8 {[%emt 0:01:18]} 25. Nfd5 {[%emt 0:02:11]} Qf7 {[%emt 0:01:07]} 26. f4 {[%emt 0:00:11]} Bb7 {[%emt 0:00:01]} 27. g4 {[%emt 0:01:31]} Rxd5 {[%emt 0:00:11]} 28. Nxd5 {[%emt 0:00:35]} Bxd5 {[%emt 0:00:02]} 29. b4 {[%emt 0:00:27]} Bxg2 {[%emt 0:01:18]} 30. Qxg2 {[%emt 0:00:08]} Re8 {[%emt 0:00:59]} 31. Bxd4 {[%emt 0:00:13]} Bxd4+ {[%emt 0:00:06]} 32. Kh1 {[%emt 0:00:01]} Nxf4 {[%emt 0:00:37]} 33. Qd2 {[%emt 0:00:10]} g5 {[%emt 0:00:14]} 34. Qd1 {[%emt 0:00:23]} Re3 {[%emt 0:00:40]} 0-1

[Event "Moscow Rapid-ch 2018"]
[Site "Moscow"]
[Date "2018.12.09"]
[Round "9"]
[White "Ulko, Jaroslav"]
[Black "Zakhartsov, Vladimir"]
[Result "1-0"]
[ECO "A05"]
[WhiteElo "2439"]
[BlackElo "2486"]
[Annotator "ChessBase"]
[PlyCount "81"]
[EventDate "2018.12.08"]
[EventType "swiss"]
[EventCountry "RUS"]
[SourceTitle "playchess.com"]
[Source "ChessBase"]
[SourceQuality "1"]
[TimeControl "900+10"]

1. Nf3 Nf6 2. c4 g6 3. Nc3 Bg7 4. e4 c5 5. d4 cxd4 6. Nxd4 Nc6 7. Be3 O-O 8. Be2 d6 9. O-O Nxd4 10. Bxd4 Bd7 11. Qd3 a6 12. Rad1 Bc6 13. f4 b5 14. e5 Ne8 15. cxb5 axb5 16. a3 Rb8 17. Bf3 Qc7 18. Rfe1 Bxf3 19. Qxf3 e6 20. Qe3 Qc6 21. exd6 Nxd6 22. Bxg7 Nf5 23. Qe5 Nxg7 24. Ne4 Rbd8 25. Nf6+ Kh8 26. Rc1 Qb6+ 27. Kh1 b4 28. a4 Rd2 29. Re3 Qd6 30. Qxd6 Rxd6 31. Re4 b3 32. Rb4 Rd3 33. g4 h5 34. g5 Nf5 35. Rbc4 Kg7 36. R4c3 Rfd8 37. Rxd3 Rxd3 38. Rc8 Ne7 39. Re8 Rd1+ 40. Kg2 Rd2+ 41. Kf3 {[%emt 0:20:47]} 1-0

[Event "Moscow Rapid-ch 2018"]
[Site "Moscow"]
[Date "2018.12.09"]
[Round "9"]
[White "Naumkin, Igor"]
[Black "Pavlov, Danila"]
[Result "1-0"]
[ECO "A52"]
[WhiteElo "2410"]
[BlackElo "2323"]
[Annotator "NA"]
[PlyCount "51"]
[EventDate "2018.12.08"]
[EventType "swiss"]
[EventCountry "RUS"]
[SourceTitle "playchess.com"]
[Source "ChessBase"]
[SourceQuality "1"]
[TimeControl "900+10"]

1. d4 {[%emt 0:00:00]} Nf6 {[%emt 0:00:00]} 2. c4 {[%emt 0:00:00]} e5 {[%emt 0:00:00]} 3. dxe5 {[%emt 0:00:00]} Ng4 {[%emt 0:00:00]} 4. e4 {[%emt 0:00:00]} Nxe5 {[%emt 0:00:00]} 5. f4 {[%emt 0:00:00]} Nec6 {[%emt 0:00:10]} 6. Be3 {[%emt 0:00:10]} d6 {[%emt 0:00:10]} 7. Nc3 {[%emt 0:00:10]} g6 {[%emt 0:00:10]} 8. Nf3 {[%emt 0:00:10]} Bg7 {[%emt 0:00:59]} 9. Bd3 {[%emt 0:00:12]} Bg4 {[%emt 0:00:25]} 10. O-O {[%emt 0:00:18]} O-O {[%emt 0:00:22]} 11. Qd2 {[%emt 0:00:14]} Bxf3 {[%emt 0:00:18]} 12. Rxf3 {[%emt 0:00:03]} Nd4 {[%emt 0:00:03]} 13. Rh3 {[%emt 0:00:17]} c5 {[%emt 0:02:59]} 14. f5 {[%emt 0:00:29]} Re8 {[%emt 0:00:43]} 15. Bh6 {[%emt 0:00:56]} Be5 {[%emt 0:00:40]} 16. Rf1 {[%emt 0:00:24]} Nd7 {[%emt 0:00:50]} 17. Nd5 {[%emt 0:00:24]} Nb6 {[%emt 0:01:02]} 18. Bg5 {[%emt 0:01:28]} f6 {[%emt 0:00:20]} 19. Bxf6 {[%emt 0:00:41]} Bxf6 {[%emt 0:00:40]} 20. Qh6 {[%emt 0:00:27]} Nxd5 {[%emt 0:02:33]} 21. Qxh7+ {[%emt 0:00:07]} Kf8 {[%emt 0:00:01]} 22. fxg6 {[%emt 0:00:11]} Qc7 {[%emt 0:00:02]} 23. Rxf6+ {[%emt 0:01:15]} Nxf6 {[%emt 0:00:01]} 24. Qxc7 {[%emt 0:00:05]} Re7 {[%emt 0:00:04]} 25. Rh8+ {[%emt 0:00:36]} Ng8 {[%emt 0:00:01]} 26. Rxg8+ {[%emt 0:00:19]} 1-0

[Event "Moscow Rapid-ch 2018"]
[Site "Moscow"]
[Date "2018.12.09"]
[Round "9"]
[White "Dvalishvili, Pavel S."]
[Black "Dragomarezkij, Evgeni"]
[Result "1-0"]
[ECO "B43"]
[WhiteElo "2396"]
[BlackElo "2385"]
[Annotator "NA"]
[PlyCount "91"]
[EventDate "2018.12.08"]
[EventType "swiss"]
[EventCountry "RUS"]
[SourceTitle "playchess.com"]
[Source "ChessBase"]
[SourceQuality "1"]
[TimeControl "900+10"]

1. e4 c5 2. Nf3 e6 3. Nc3 a6 4. d4 cxd4 5. Nxd4 Qc7 6. Bd3 Nc6 7. Nxc6 dxc6 8. O-O e5 9. Bc4 b5 10. Bb3 Nf6 11. Qf3 Bg4 12. Qg3 h5 13. Bg5 Be7 14. h3 b4 15. Bxf6 Bxf6 16. hxg4 h4 17. Qe3 bxc3 18. Qxc3 O-O 19. Rad1 Rad8 20. Qe3 g5 21. Rd3 Be7 22. Rfd1 Rxd3 23. Rxd3 Kg7 24. Qf3 Bf6 25. Kf1 Rd8 26. Ke2 Rd6 27. Rxd6 Qxd6 28. Qd3 Qb4 29. c3 Qb5 30. Qxb5 axb5 31. Kd3 Bd8 32. a4 Bb6 33. axb5 cxb5 34. Bd5 Bxf2 35. b4 Kf8 36. Bc6 Ke7 37. Bxb5 Be1 38. Bc4 f6 39. Bd5 Kd6 40. Bg8 Kc6 41. Be6 Kb5 42. Bd7+ Kb6 43. Kc4 Kc7 44. Bf5 Kb6 45. Kb3 Kc6 46. c4 1-0

[Event "Moscow Rapid-ch 2018"]
[Site "Moscow"]
[Date "2018.12.09"]
[Round "9"]
[White "Gorbatov, Alexej"]
[Black "Tsvetkov, Andrey"]
[Result "0-1"]
[ECO "B20"]
[WhiteElo "2389"]
[BlackElo "2338"]
[Annotator "NA"]
[PlyCount "105"]
[EventDate "2018.12.08"]
[EventType "swiss"]
[EventCountry "RUS"]
[SourceTitle "playchess.com"]
[Source "ChessBase"]
[SourceQuality "1"]
[TimeControl "900+10"]

1. e4 {[%emt 0:00:00]} c5 {[%emt 0:00:00]} 2. b3 {[%emt 0:00:00]} g6 {[%emt 0:00:00]} 3. Bb2 {[%emt 0:00:00]} Nf6 {[%emt 0:00:00]} 4. g3 {[%emt 0:00:00]} d6 {[%emt 0:00:00]} 5. Bg2 {[%emt 0:00:00]} Bg7 {[%emt 0:00:00]} 6. Ne2 {[%emt 0:00:03]} Nc6 {[%emt 0:00:03]} 7. O-O {[%emt 0:00:06]} e5 {[%emt 0:00:02]} 8. Nbc3 {[%emt 0:01:30]} O-O {[%emt 0:00:04]} 9. Nd5 {[%emt 0:00:01]} Nxd5 {[%emt 0:01:20]} 10. exd5 {[%emt 0:00:01]} Nd4 {[%emt 0:00:02]} 11. Nxd4 {[%emt 0:00:33]} exd4 {[%emt 0:00:27]} 12. c3 {[%emt 0:00:23]} Bf5 {[%emt 0:01:47]} 13. cxd4 {[%emt 0:00:52]} cxd4 {[%emt 0:00:01]} 14. Rc1 {[%emt 0:02:35]} Qb6 {[%emt 0:00:50]} 15. Re1 {[%emt 0:00:28]} Rac8 {[%emt 0:00:27]} 16. Rxc8 {[%emt 0:03:31]} Rxc8 {[%emt 0:00:01]} 17. Qa1 {[%emt 0:00:00]} Qb4 {[%emt 0:00:34]} 18. Bf1 {[%emt 0:05:39]} h5 {[%emt 0:00:31]} 19. d3 {[%emt 0:00:20]} Rc2 {[%emt 0:00:11]} 20. Rc1 {[%emt 0:00:30]} Rxc1 {[%emt 0:01:14]} 21. Qxc1 {[%emt 0:00:03]} Qa5 {[%emt 0:00:02]} 22. Ba3 {[%emt 0:01:34]} Qxd5 {[%emt 0:01:05]} 23. Qc7 {[%emt 0:00:02]} Qf3 {[%emt 0:00:26]} 24. Qc2 {[%emt 0:00:24]} Qd5 {[%emt 0:00:44]} 25. Bg2 {[%emt 0:00:12]} Qa5 {[%emt 0:01:46]} 26. Qc1 {[%emt 0:00:18]} Bxd3 {[%emt 0:00:46]} 27. Bxb7 {[%emt 0:00:05]} Bf5 {[%emt 0:00:51]} 28. Bxd6 {[%emt 0:00:07]} d3 {[%emt 0:00:03]} 29. Bf4 {[%emt 0:00:14]} Qxa2 {[%emt 0:00:10]} 30. Bd5 {[%emt 0:00:02]} Bh3 {[%emt 0:01:23]} 31. Be3 {[%emt 0:00:23]} Qe2 {[%emt 0:00:19]} 32. Bg2 {[%emt 0:00:10]} Be6 {[%emt 0:00:34]} 33. b4 {[%emt 0:00:04]} Bf8 {[%emt 0:01:17]} 34. Bf1 {[%emt 0:00:09]} Qc2 {[%emt 0:00:18]} 35. Qe1 {[%emt 0:00:08]} Bf5 {[%emt 0:00:43]} 36. Bd2 {[%emt 0:00:03]} h4 {[%emt 0:00:13]} 37. Qe3 {[%emt 0:00:06]} Bg7 {[%emt 0:01:08]} 38. g4 {[%emt 0:00:20]} Bxg4 {[%emt 0:00:13]} 39. Qxd3 {[%emt 0:00:01]} Qc7 {[%emt 0:00:20]} 40. Qe4 {[%emt 0:00:16]} Qd7 {[%emt 0:00:22]} 41. Be3 {[%emt 0:00:08]} Bf6 {[%emt 0:00:40]} 42. Qa8+ {[%emt 0:00:03]} Kg7 {[%emt 0:00:08]} 43. Qxa7 {[%emt 0:00:01]} Qd1 {[%emt 0:00:04]} 44. Qa6 {[%emt 0:00:18]} Be5 {[%emt 0:00:35]} 45. Qd3 {[%emt 0:00:03]} Qa1 {[%emt 0:00:08]} 46. b5 {[%emt 0:00:10]} Bf5 {[%emt 0:00:35]} 47. Qe2 {[%emt 0:00:16]} Bh3 {[%emt 0:00:03]} 48. b6 {[%emt 0:00:01]} Bxf1 {[%emt 0:00:05]} 49. Qxf1 {[%emt 0:00:02]} Bxh2+ {[%emt 0:00:01]} 50. Kg2 {[%emt 0:00:00]} h3+ {[%emt 0:00:00]} 51. Kxh3 {[%emt 0:00:11]} Qxf1+ {[%emt 0:00:02]} 52. Kxh2 {[%emt 0:00:01]} Qb5 {[%emt 0:00:03]} 53. Bc1 0-1